{"text_format":"1","workbook":"xlsx","n_sheets":6,"sheets":["Table of content","Settings","HiddenSettings","1-POS-AGR","1-FLOW-AGR","1-INC-AGR"],"not_rendered":{"charts":0,"images":1,"macros":1,"external_links":0,"defined_names":15,"comments":0,"pivot_tables":0},"unopened":[],"bounds":{"document_bytes":16777216,"sheet_cells":100000,"rows_first":2000,"rows_last":500,"rows_between":2000,"halvings":0,"cell_chars":16384,"cell_head_chars":4096},"cells_cut":0,"cells_raw":0,"read":"whole","date_system":"1900"}

{"sheet":"Table of content","index":0,"n_rows":23,"n_cols":3,"rows_kept":23,"cut":false,"hidden":false,"merged":[[7,1,7,15]]}
[]
[]
[]
[]
[]
[null,"OECD BENCHMARK DEFINITION OF FOREIGN DIRECT INVESTMENT, 4TH EDITION: ELECTRONIC QUESTIONNAIRE 1"]
[null,"FOREIGN DIRECT INVESTMENT AGGREGATES ACCORDING TO THE ASSET/LIABILITY PRINCIPLE"]
[null,"DIRECTORATE FOR FINANCIAL AND ENTERPRISES AFFAIRS\nInvestment Division"]
[null,"OECD Contact: emilie.kothe@oecd.org. "]
[]
[null,"QUESTIONNAIRES SETTINGS"]
[null,"Settings"]
[]
[null,"STANDARD QUESTIONNAIRES"]
[null,"Questionnaire 1-POS-AGR","FDI POSITIONS-MACROECONOMIC AGGREGATES ACCORDING TO THE ASSET/LIABILITY PRINCIPLE"]
[null,"Questionnaire 1-FLOW-AGR","FDI FINANCIAL FLOWS-MACROECONOMIC AGGREGATES ACCORDING TO THE ASSET/LIABILITY PRINCIPLE"]
[null,"Questionnaire 1-INC-AGR ","FDI INCOME-MACROECONOMIC AGGREGATES ACCORDING TO THE ASSET/LIABILITY PRINCIPLE"]
[null,"Member countries who cannot report all Asset/liability components which are necessary for the conversion of FDI series into the extended directional basis are invited to report FDI aggregates on an extended directional basis, on top of the asset/liability basis. "]
[null,"DATA REPORTING TIMELINESS:"]
[null,"FDI transactions (income and financial flows): T+3 after the reference year and quarter"]
[]
[]
[null,"FDI positions: T+3 after the reference year (or T+6 if not available at T+3)"]

{"sheet":"Settings","index":1,"n_rows":43,"n_cols":11,"rows_kept":43,"cut":false,"hidden":false,"merged":[[2,1,2,9]]}
[]
[null,"FOREIGN DIRECT INVESTMENT AGGREGATES ACCORDING TO ASSET/LIABILITY PRINCIPLE"]
[]
[null,"Reporting period:",null,"Please select time range below, and click 'update table':"]
[]
[null,null,"YEARS:   from",null,"TO",null,"CURRENT YEAR :",{"$f":"IF(StartYear<>\"\",(IF(EndYear<>\"\",IF(StartYear<>EndYear,StartYear&\" -  \"&EndYear,StartYear), StartYear)),EndYear)","v":"2005 -  2021"}]
[]
[]
[]
[]
[null,"Reporting country:"]
[]
[null,null,"COUNTRY :",null,null,null,"COUNTRY:",{"$f":"Country","v":""}]
[]
[null,"Reporting currency:"]
[]
[null,null,"CURRENCY :",null,null,null,"CURRENCY :",{"$f":"Currency","v":0}]
[]
[null,null,"(Data should be reported either in national currency or US dollars)"]
[]
[null,null,"UNITS :","Data should be reported in millions."]
[]
[null,"Statistical Unit"]
[]
[null,null,"STATISTICAL UNIT: ",null,null,null,"STATISTICAL UNIT :",{"$f":"StatUnit","v":""}]
[]
[null,null,"Statistical unit recommended by BMD4: Enterprise"]
[]
[null,"Valuation Method"]
[]
[null,null,"FDI FLOWS:",null,null,null,"Valuation method for FDI flows: ",{"$f":"ValuationFlows","v":""}]
[]
[]
[null,null,"FDI POSITIONS:",null,null,null,"Valuation method for FDI positions: ",{"$f":"ValuationPos","v":""}]
[]
[null,null,"Valuation method recommended by BMD4: Market value (including estimates for unlisted companies)"]
[]
[null,"Please note alternate conventional cell values"]
[]
[null,"NA",": Data not available",null,null,"Blank ",": when there is no transaction/position (0)"]
[]
[null,"Control codes to be indicated in column 'cc' next to the cell value, when applicable"]
[null,"C",": Confidential",null,null,"N",": Not publishable",null,null,"D",": Secondary Confidentiality"]

{"sheet":"HiddenSettings","index":2,"n_rows":43,"n_cols":14,"rows_kept":43,"cut":false,"hidden":true,"merged":[]}
["Do not make any data changes on this sheet (Internal Reserved Use)"]
[]
[null,null,"Countries","Year","Currency","CountryIndex","Units","Currency Select",null,"Statistical Unit","StatUnitIndex","Valuation Method","Valuation index","Settings"]
[null,null,null,null,null,1,null,null,null,null,1,null,1,{"$f":"IF(CountryIndex=1,\"\",INDEX(C4:C56,CountryIndex,1))","v":""}]
[null,null,"Australia",1990,"AUD","CurrencyIndex","Thousands","US dollars",null,"Enterprise",null,"Market value",1,{"$f":"IF(CurrencyIndex=1,\"USD\",INDEX(E4:E78,CountryIndex,1))","v":0}]
[null,null,"Austria",1991,"EUR",2,"Millions","National currency",null,"Local enterprise group",null,"Historic acquisition cost",null,{"$f":"IF(StartYearIndex=1,\"\",INDEX(D4:D39,StartYearIndex,1))","v":2005}]
[null,null,"Belgium",1992,"EUR","StartYear","Billions",null,null,"Unspecified statistical units",null,"Accumulation of FDI equity capital flow",null,{"$f":"IF(EndYearIndex=1,\"\",INDEX(D4:D39,EndYearIndex,1))","v":2021}]
[null,null,"Belgium-Luxembourg",1993,"EUR",17,null,null,null,null,null,"Stock market price index applied to accumulated FDI equity capital flow",null,{"$f":"IF(ValuationFlowsIndex=1,\"\",INDEX(L4:L13,ValuationFlowsIndex,1))","v":""}]
[null,null,"Canada",1994,"CAD","EndYearIndex",null,null,null,null,null,"Book value",null,{"$f":"IF(ValuationPosIndex=1,\"\",INDEX(L4:L13,ValuationPosIndex,1))","v":""}]
[null,null,"Chile",1995,"USD",33,null,null,null,null,null,"Not allocated/unspecified (including all kinds of valuation methods)",null,{"$f":"IF(StatUnitIndex=1,\"\",INDEX(J4:J7,StatUnitIndex,1))","v":""}]
[null,null,"Colombia",1996,"USD"]
[null,null,"Costa Rica",1997,"USD"]
[null,null,"Czech Republic",1998,"CZK"]
[null,null,"Denmark",1999,"DKK"]
[null,null,"Estonia",2000,"EUR"]
[null,null,"Finland",2001,"EUR"]
[null,null,"France",2002,"EUR"]
[null,null,"Germany",2003,"EUR"]
[null,null,"Greece",2004,"EUR"]
[null,null,"Hungary",2005,"HUF"]
[null,null,"Iceland",2006,"ISK"]
[null,null,"Ireland",2007,"EUR"]
[null,null,"Israel",2008,"USD"]
[null,null,"Italy",2009,"EUR"]
[null,null,"Japan",2010,"JPY"]
[null,null,"Korea",2011,"KRW"]
[null,null,"Lithuania",2012,"EUR"]
[null,null,"Luxembourg",2013,"EUR"]
[null,null,"Mexico",2014,"MXN"]
[null,null,"Netherlands",2015,"EUR"]
[null,null,"New Zealand",2016,"NZD"]
[null,null,"Norway",2017,"NOK"]
[null,null,"Poland",2018,"PLN"]
[null,null,"Portugal",2019,"EUR"]
[null,null,"Slovak Republic",2020,"EUR"]
[null,null,"Slovenia",2021,"EUR"]
[null,null,"Spain",null,"EUR"]
[null,null,"Sweden",null,"SEK"]
[null,null,"Switzerland",null,"CHF"]
[null,null,"Turkey",null,"TRL"]
[null,null,"United Kingdom",null,"GBP"]
[null,null,"United States",null,"USD"]
[null,null,"Brazil",null,"USD"]

{"sheet":"1-POS-AGR","index":3,"n_rows":52,"n_cols":71,"rows_kept":52,"cut":false,"hidden":false,"merged":[[11,63,11,66],[25,63,25,66],[44,63,44,66],[48,63,48,66],[11,39,11,42],[25,39,25,42],[44,39,44,42],[48,39,48,42],[11,47,11,50],[25,47,25,50],[44,47,44,50],[48,47,48,50],[11,43,11,46],[25,43,25,46],[44,43,44,46],[48,43,48,46],[11,31,11,34],[25,31,25,34],[44,31,44,34],[48,31,48,34],[11,35,11,38],[25,35,25,38],[44,35,44,38],[48,35,48,38],[11,23,11,26],[25,23,25,26],[44,23,44,26],[48,23,48,26],[11,27,11,30],[25,27,25,30],[44,27,44,30],[48,27,48,30],[11,15,11,18],[25,15,25,18],[44,15,44,18],[48,15,48,18],[11,19,11,22],[25,19,25,22],[44,19,44,22],[48,19,48,22],[11,11,11,14],[25,11,25,14],[44,11,44,14],[48,11,48,14],[44,3,44,6],[48,3,48,6],[11,3,11,6],[25,3,25,6],[11,7,11,10],[25,7,25,10],[44,7,44,10],[48,7,48,10],[11,67,11,70],[25,67,25,70],[44,67,44,70],[48,67,48,70],[11,51,11,54],[25,51,25,54],[44,51,44,54],[48,51,48,54],[11,55,11,58],[25,55,25,58],[44,55,44,58],[48,55,48,58],[11,59,11,62],[25,59,25,62],[44,59,44,62],[48,59,48,62]]}
[null,"QUESTIONNAIRE 1-POS-AGR   FDI POSITIONS- MACRO ECONOMIC AGGREGATES [ASSET/LIABILITY PRINCIPLE]"]
["COUNTRY:",{"$f":"Country","v":""}]
["YEAR:  ",{"$f":"Year","v":"2005 -  2021"}]
["CURRENCY:  ",{"$f":"Currency","v":0}]
["UNITS:           ","MILLIONS"]
["STATISTICAL UNIT:",{"$f":"StatUnit","v":""}]
["VALUATION:",{"$f":"ValuationPos","v":""}]
[]
["1     FOREIGN DIRECT INVESTMENT POSITIONS: MACRO ECONOMIC AGGREGATES (ANNUAL)"]
[null,null,null,"Assets (A)",null,"Liabilities (L)",null,"Assets (A)",null,"Liabilities (L)",null,"Assets (A)",null,"Liabilities (L)",null,"Assets (A)",null,"Liabilities (L)",null,"Assets (A)",null,"Liabilities (L)",null,"Assets (A)",null,"Liabilities (L)",null,"Assets (A)",null,"Liabilities (L)",null,"Assets (A)",null,"Liabilities (L)",null,"Assets (A)",null,"Liabilities (L)",null,"Assets (A)",null,"Liabilities (L)",null,"Assets (A)",null,"Liabilities (L)",null,"Assets (A)",null,"Liabilities (L)",null,"Assets (A)",null,"Liabilities (L)",null,"Assets (A)",null,"Liabilities (L)",null,"Assets (A)",null,"Liabilities (L)",null,"Assets (A)",null,"Liabilities (L)",null,"Assets (A)",null,"Liabilities (L)"]
[null,null,null,2005,"cc",2005,"cc",2006,"cc",2006,"cc",2007,"cc",2007,"cc",2008,"cc",2008,"cc",2009,"cc",2009,"cc",2010,"cc",2010,"cc",2011,"cc",2011,"cc",2012,"cc",2012,"cc",2013,"cc",2013,"cc",2014,"cc",2014,"cc",2015,"cc",2015,"cc",2016,"cc",2016,"cc",2017,"cc",2017,"cc",2018,"cc",2018,"cc",2019,"cc",2019,"cc",2020,"cc",2020,"cc",2021,"cc",2021,"cc"]
["1.1","All entities (ALL)"]
["1.1.1","Equity  (including Reinvestment of earnings) (F5)","D"]
["1.1.1.1","Direct investor in direct investment enterprises","D1"]
["1.1.1.2","Direct investment enterprises in direct investor  ","D2"]
["1.1.1.3","Fellow enterprises in other fellow enterprises","D3"]
["1.1.1.3.1","Ultimate controlling parent is resident","U1"]
["1.1.1.3.2","Ultimate controlling parent is non-resident","U2"]
["1.1.2.","Debt instruments (FL)","D"]
["1.1.2.1","Direct investor in direct investment enterprises","D1"]
["1.1.2.2","Direct investment enterprises in direct investor  ","D2"]
["1.1.2.3","Fellow enterprises in other fellow enterprises","D3"]
["1.1.2.3.1","Ultimate controlling parent is resident","U1"]
["1.1.2.3.2","Ultimate controlling parent is non-resident","U2"]
["1.1.3.","Total (F)","D"]
["1.2","Of which: Resident SPEs (RSP)"]
["1.2.1","Equity  (including Reinvestment of earnings) (F5)","D"]
["1.2.1.1","Direct investor in direct investment enterprises","D1"]
["1.2.1.2","Direct investment enterprises in direct investor  ","D2"]
["1.2.1.3","Fellow enterprises in other fellow enterprises","D3"]
["1.2.1.3.1","Ultimate controlling parent is resident","U1"]
["1.2.1.3.2","Ultimate controlling parent is non-resident","U2"]
["1.2.2.","Debt instruments (FL)","D"]
["1.2.2.1","Direct investor in direct investment enterprises","D1"]
["1.2.2.2","Direct investment enterprises in direct investor  ","D2"]
["1.2.2.3","Fellow enterprises in other fellow enterprises","D3"]
["1.2.2.3.1","Ultimate controlling parent is resident","U1"]
["1.2.2.3.2","Ultimate controlling parent is non-resident","U2"]
["1.2.3.","Total (F)","D"]
[]
["If you do not report all above listed FDI components according to the asset/liability presentation, which are necessary for the conversion of FDI series into the directional basis, please also report the directional FDI series below:"]
["FOREIGN DIRECT INVESTMENT POSITIONS:AGGREGATES ON A DIRECTIONAL BASIS (ANNUAL)"]
[null,null,null,"Net outward (NO)",null,"Net inward (NI)",null,"Net outward (NO)",null,"Net inward (NI)",null,"Net outward (NO)",null,"Net inward (NI)",null,"Net outward (NO)",null,"Net inward (NI)",null,"Net outward (NO)",null,"Net inward (NI)",null,"Net outward (NO)",null,"Net inward (NI)",null,"Net outward (NO)",null,"Net inward (NI)",null,"Net outward (NO)",null,"Net inward (NI)",null,"Net outward (NO)",null,"Net inward (NI)",null,"Net outward (NO)",null,"Net inward (NI)",null,"Net outward (NO)",null,"Net inward (NI)",null,"Net outward (NO)",null,"Net inward (NI)",null,"Net outward (NO)",null,"Net inward (NI)",null,"Net outward (NO)",null,"Net inward (NI)",null,"Net outward (NO)",null,"Net inward (NI)",null,"Net outward (NO)",null,"Net inward (NI)",null,"Net outward (NO)",null,"Net inward (NI)"]
[null,null,null,2005,"cc",2005,"cc",2006,"cc",2006,"cc",2007,"cc",2007,"cc",2008,"cc",2008,"cc",2009,"cc",2009,"cc",2010,"cc",2010,"cc",2011,"cc",2011,"cc",2012,"cc",2012,"cc",2013,"cc",2013,"cc",2014,"cc",2014,"cc",2015,"cc",2015,"cc",2016,"cc",2016,"cc",2017,"cc",2017,"cc",2018,"cc",2018,"cc",2019,"cc",2019,"cc",2020,"cc",2020,"cc",2021,"cc",2021,"cc"]
["1.3","All entities (ALL)"]
["1.3.1","Equity  (including Reinvestment of earnings) (F5)","D"]
["1.3.2.","Debt instruments (FL)","D"]
["1.3.3.","Total (F)","D"]
["1.4","Of which: Resident SPEs (RSP)"]
["1.4.1","Equity  (including Reinvestment of earnings) (F5)","D"]
["1.4.2.","Debt instruments (FL)","D"]
["1.4.3.","Total (F)","D"]

{"sheet":"1-FLOW-AGR","index":4,"n_rows":56,"n_cols":343,"rows_kept":56,"cut":false,"hidden":false,"merged":[[46,223,46,242],[51,223,51,242],[9,223,9,232],[9,233,9,242],[11,223,11,242],[26,223,26,242],[44,223,44,232],[44,233,44,242],[9,283,9,292],[46,243,46,262],[51,243,51,262],[9,263,9,272],[9,273,9,282],[11,263,11,282],[26,263,26,282],[44,263,44,272],[44,273,44,282],[46,263,46,282],[51,263,51,282],[9,243,9,252],[9,253,9,262],[11,243,11,262],[26,243,26,262],[44,243,44,252],[46,183,46,202],[51,183,51,202],[9,183,9,192],[9,193,9,202],[11,183,11,202],[26,183,26,202],[44,183,44,192],[44,193,44,202],[46,143,46,162],[51,143,51,162],[9,163,9,172],[9,173,9,182],[11,163,11,182],[26,163,26,182],[44,163,44,172],[44,173,44,182],[46,163,46,182],[51,163,51,182],[9,143,9,152],[9,153,9,162],[11,143,11,162],[26,143,26,162],[44,143,44,152],[44,153,44,162],[46,103,46,122],[51,103,51,122],[9,123,9,132],[9,133,9,142],[11,123,11,142],[26,123,26,142],[44,123,44,132],[44,133,44,142],[46,123,46,142],[51,123,51,142],[9,103,9,112],[9,113,9,122],[11,103,11,122],[26,103,26,122],[44,103,44,112],[44,113,44,122],[9,83,9,92],[9,93,9,102],[11,83,11,102],[26,83,26,102],[44,83,44,92],[44,93,44,102],[46,83,46,102],[51,83,51,102],[9,63,9,72],[9,73,9,82],[11,63,11,82],[26,63,26,82],[44,63,44,72],[44,73,44,82],[46,43,46,62],[51,43,51,62],[9,23,9,32],[9,33,9,42],[11,23,11,42],[26,23,26,42],[44,23,44,32],[44,33,44,42],[46,63,46,82],[51,63,51,82],[46,3,46,22],[51,3,51,22],[9,3,9,12],[9,13,9,22],[26,3,26,22],[11,3,11,22],[44,3,44,12],[44,13,44,22],[46,203,46,222],[51,203,51,222],[9,203,9,212],[9,213,9,222],[11,203,11,222],[26,203,26,222],[44,203,44,212],[44,213,44,222],[46,23,46,42],[51,23,51,42],[9,43,9,52],[9,53,9,62],[11,43,11,62],[26,43,26,62],[44,43,44,52],[44,53,44,62],[9,323,9,332],[9,333,9,342],[11,323,11,342],[26,323,26,342],[44,323,44,332],[44,333,44,342],[46,323,46,342],[51,323,51,342],[44,253,44,262],[9,293,9,302],[11,283,11,302],[26,283,26,302],[44,283,44,292],[44,293,44,302],[46,283,46,302],[51,283,51,302],[9,303,9,312],[9,313,9,322],[11,303,11,322],[26,303,26,322],[44,303,44,312],[44,313,44,322],[46,303,46,322],[51,303,51,322]]}
[null,"QUESTIONNAIRE 1-FLOW-AGR  FDI FLOWS- MACRO ECONOMIC AGGREGATES [ASSET/LIABILITY PRINCIPLE]"]
["COUNTRY:",{"$f":"Country","v":""}]
["YEAR:  ",{"$f":"Year","v":"2005 -  2021"}]
["CURRENCY:    ",{"$f":"Currency","v":0}]
["UNITS:           ","MILLIONS"]
["STATISTICAL UNIT:",{"$f":"StatUnit","v":""}]
["VALUATION:",{"$f":"ValuationFlows","v":""}]
[]
["2     FOREIGN DIRECT INVESTMENT TRANSACTIONS: MACRO ECONOMIC AGGREGATES (ANNUAL AND QUARTERLY)"]
[null,null,null,"Net acquisition of financial assets (A)",null,null,null,null,null,null,null,null,null,"Net incurrence of liabilities (L)",null,null,null,null,null,null,null,null,null,"Net acquisition of financial assets (A)",null,null,null,null,null,null,null,null,null,"Net incurrence of liabilities (L)",null,null,null,null,null,null,null,null,null,"Net acquisition of financial assets (A)",null,null,null,null,null,null,null,null,null,"Net incurrence of liabilities (L)",null,null,null,null,null,null,null,null,null,"Net acquisition of financial assets (A)",null,null,null,null,null,null,null,null,null,"Net incurrence of liabilities (L)",null,null,null,null,null,null,null,null,null,"Net acquisition of financial assets (A)",null,null,null,null,null,null,null,null,null,"Net incurrence of liabilities (L)",null,null,null,null,null,null,null,null,null,"Net acquisition of financial assets (A)",null,null,null,null,null,null,null,null,null,"Net incurrence of liabilities (L)",null,null,null,null,null,null,null,null,null,"Net acquisition of financial assets (A)",null,null,null,null,null,null,null,null,null,"Net incurrence of liabilities (L)",null,null,null,null,null,null,null,null,null,"Net acquisition of financial assets (A)",null,null,null,null,null,null,null,null,null,"Net incurrence of liabilities (L)",null,null,null,null,null,null,null,null,null,"Net acquisition of financial assets (A)",null,null,null,null,null,null,null,null,null,"Net incurrence of liabilities (L)",null,null,null,null,null,null,null,null,null,"Net acquisition of financial assets (A)",null,null,null,null,null,null,null,null,null,"Net incurrence of liabilities (L)",null,null,null,null,null,null,null,null,null,"Net acquisition of financial assets (A)",null,null,null,null,null,null,null,null,null,"Net incurrence of liabilities (L)",null,null,null,null,null,null,null,null,null,"Net acquisition of financial assets (A)",null,null,null,null,null,null,null,null,null,"Net incurrence of liabilities (L)",null,null,null,null,null,null,null,null,null,"Net acquisition of financial assets (A)",null,null,null,null,null,null,null,null,null,"Net incurrence of liabilities (L)",null,null,null,null,null,null,null,null,null,"Net acquisition of financial assets (A)",null,null,null,null,null,null,null,null,null,"Net incurrence of liabilities (L)",null,null,null,null,null,null,null,null,null,"Net acquisition of financial assets (A)",null,null,null,null,null,null,null,null,null,"Net incurrence of liabilities (L)",null,null,null,null,null,null,null,null,null,"Net acquisition of financial assets (A)",null,null,null,null,null,null,null,null,null,"Net incurrence of liabilities (L)",null,null,null,null,null,null,null,null,null,"Net acquisition of financial assets (A)",null,null,null,null,null,null,null,null,null,"Net incurrence of liabilities (L)"]
[null,null,null,"2005Q1","cc","2005Q2","cc","2005Q3","cc","2005Q4","cc",2005,"cc","2005Q1","cc","2005Q2","cc","2005Q3","cc","2005Q4","cc",2005,"cc","2006Q1","cc","2006Q2","cc","2006Q3","cc","2006Q4","cc",2006,"cc","2006Q1","cc","2006Q2","cc","2006Q3","cc","2006Q4","cc",2006,"cc","2007Q1","cc","2007Q2","cc","2007Q3","cc","2007Q4","cc",2007,"cc","2007Q1","cc","2007Q2","cc","2007Q3","cc","2007Q4","cc",2007,"cc","2008Q1","cc","2008Q2","cc","2008Q3","cc","2008Q4","cc",2008,"cc","2008Q1","cc","2008Q2","cc","2008Q3","cc","2008Q4","cc",2008,"cc","2009Q1","cc","2009Q2","cc","2009Q3","cc","2009Q4","cc",2009,"cc","2009Q1","cc","2009Q2","cc","2009Q3","cc","2009Q4","cc",2009,"cc","2010Q1","cc","2010Q2","cc","2010Q3","cc","2010Q4","cc",2010,"cc","2010Q1","cc","2010Q2","cc","2010Q3","cc","2010Q4","cc",2010,"cc","2011Q1","cc","2011Q2","cc","2011Q3","cc","2011Q4","cc",2011,"cc","2011Q1","cc","2011Q2","cc","2011Q3","cc","2011Q4","cc",2011,"cc","2012Q1","cc","2012Q2","cc","2012Q3","cc","2012Q4","cc",2012,"cc","2012Q1","cc","2012Q2","cc","2012Q3","cc","2012Q4","cc",2012,"cc","2013Q1","cc","2013Q2","cc","2013Q3","cc","2013Q4","cc",2013,"cc","2013Q1","cc","2013Q2","cc","2013Q3","cc","2013Q4","cc",2013,"cc","2014Q1","cc","2014Q2","cc","2014Q3","cc","2014Q4","cc",2014,"cc","2014Q1","cc","2014Q2","cc","2014Q3","cc","2014Q4","cc",2014,"cc","2015Q1","cc","2015Q2","cc","2015Q3","cc","2015Q4","cc",2015,"cc","2015Q1","cc","2015Q2","cc","2015Q3","cc","2015Q4","cc",2015,"cc","2016Q1","cc","2016Q2","cc","2016Q3","cc","2016Q4","cc",2016,"cc","2016Q1","cc","2016Q2","cc","2016Q3","cc","2016Q4","cc",2016,"cc","2017Q1","cc","2017Q2","cc","2017Q3","cc","2017Q4","cc",2017,"cc","2017Q1","cc","2017Q2","cc","2017Q3","cc","2017Q4","cc",2017,"cc","2018Q1","cc","2018Q2","cc","2018Q3","cc","2018Q4","cc",2018,"cc","2018Q1","cc","2018Q2","cc","2018Q3","cc","2018Q4","cc",2018,"cc","2019Q1","cc","2019Q2","cc","2019Q3","cc","2019Q4","cc",2019,"cc","2019Q1","cc","2019Q2","cc","2019Q3","cc","2019Q4","cc",2019,"cc","2020Q1","cc","2020Q2","cc","2020Q3","cc","2020Q4","cc",2020,"cc","2020Q1","cc","2020Q2","cc","2020Q3","cc","2020Q4","cc",2020,"cc","2021Q1","cc","2021Q2","cc","2021Q3","cc","2021Q4","cc",2021,"cc","2021Q1","cc","2021Q2","cc","2021Q3","cc","2021Q4","cc",2021,"cc"]
["2.1","All entities (ALL)"]
["2.1.1","Equity  (excluding Reinvestment of earnings) (F5A)","D"]
["2.1.1.1","Direct investor in direct investment enterprises  ","D1"]
["2.1.1.2","Direct investment enterprises in direct investor  ","D2"]
["2.1.1.3","Fellow enterprises in other fellow enterprises","D3"]
["2.1.1.3.1","Ultimate controlling parent is resident","U1"]
["2.1.1.3.2","Ultimate controlling parent is non-resident","U2"]
["2.1.2.","Reinvestment of earnings (F5B)","D"]
["2.1.3.","Debt instruments (FL)","D"]
["2.1.3.1","Direct investor in direct investment enterprises  ","D1"]
["2.1.3.2","Direct investment enterprises in direct investor  ","D2"]
["2.1.3.3","Fellow enterprises in other fellow enterprises","D3"]
["2.1.3.3.1","Ultimate controlling parent is resident","U1"]
["2.1.3.3.2","Ultimate controlling parent is non-resident","U2"]
["2.1.4.","Total (F)","D"]
["2.2","Of which: Resident SPEs (RSP)"]
["2.2.1","Equity  (excluding Reinvestment of earnings) (F5A)","D"]
["2.2.1.1","Direct investor in direct investment enterprises  ","D1"]
["2.2.1.2","Direct investment enterprises in direct investor  ","D2"]
["2.2.1.3","Fellow enterprises in other fellow enterprises","D3"]
["2.2.1.3.1","Ultimate controlling parent is resident","U1"]
["2.2.1.3.2","Ultimate controlling parent is non-resident","U2"]
["2.2.2.","Reinvestment of earnings (F5B)","D"]
["2.2.3.","Debt instruments (FL)","D"]
["2.2.3.1","Direct investor in direct investment enterprises  ","D1"]
["2.2.3.2","Direct investment enterprises in direct investor  ","D2"]
["2.2.3.3","Fellow enterprises in other fellow enterprises","D3"]
["2.2.3.3.1","Ultimate controlling parent is resident","U1"]
["2.2.3.3.2","Ultimate controlling parent is non-resident","U2"]
["2.2.4.","Total (F)","D"]
[]
["If you do not report all above listed FDI components according to the asset/liability presentation, which are necessary for the conversion of FDI series into the directional basis, please also report the directional FDI series below:"]
["FOREIGN DIRECT INVESTMENT TRANSACTIONS:AGGREGATES ON A DIRECTIONAL BASIS (ANNUAL AND QUARTERLY)"]
[null,null,null,"Net outward (NO)",null,null,null,null,null,null,null,null,null,"Net inward (NI)",null,null,null,null,null,null,null,null,null,"Net outward (NO)",null,null,null,null,null,null,null,null,null,"Net inward (NI)",null,null,null,null,null,null,null,null,null,"Net outward (NO)",null,null,null,null,null,null,null,null,null,"Net inward (NI)",null,null,null,null,null,null,null,null,null,"Net outward (NO)",null,null,null,null,null,null,null,null,null,"Net inward (NI)",null,null,null,null,null,null,null,null,null,"Net outward (NO)",null,null,null,null,null,null,null,null,null,"Net inward (NI)",null,null,null,null,null,null,null,null,null,"Net outward (NO)",null,null,null,null,null,null,null,null,null,"Net inward (NI)",null,null,null,null,null,null,null,null,null,"Net outward (NO)",null,null,null,null,null,null,null,null,null,"Net inward (NI)",null,null,null,null,null,null,null,null,null,"Net outward (NO)",null,null,null,null,null,null,null,null,null,"Net inward (NI)",null,null,null,null,null,null,null,null,null,"Net outward (NO)",null,null,null,null,null,null,null,null,null,"Net inward (NI)",null,null,null,null,null,null,null,null,null,"Net outward (NO)",null,null,null,null,null,null,null,null,null,"Net inward (NI)",null,null,null,null,null,null,null,null,null,"Net outward (NO)",null,null,null,null,null,null,null,null,null,"Net inward (NI)",null,null,null,null,null,null,null,null,null,"Net outward (NO)",null,null,null,null,null,null,null,null,null,"Net inward (NI)",null,null,null,null,null,null,null,null,null,"Net outward (NO)",null,null,null,null,null,null,null,null,null,"Net inward (NI)",null,null,null,null,null,null,null,null,null,"Net outward (NO)",null,null,null,null,null,null,null,null,null,"Net inward (NI)",null,null,null,null,null,null,null,null,null,"Net outward (NO)",null,null,null,null,null,null,null,null,null,"Net inward (NI)",null,null,null,null,null,null,null,null,null,"Net outward (NO)",null,null,null,null,null,null,null,null,null,"Net inward (NI)",null,null,null,null,null,null,null,null,null,"Net outward (NO)",null,null,null,null,null,null,null,null,null,"Net inward (NI)"]
[null,null,null,"2005Q1","cc","2005Q2","cc","2005Q3","cc","2005Q4","cc",2005,"cc","2005Q1","cc","2005Q2","cc","2005Q3","cc","2005Q4","cc",2005,"cc","2006Q1","cc","2006Q2","cc","2006Q3","cc","2006Q4","cc",2006,"cc","2006Q1","cc","2006Q2","cc","2006Q3","cc","2006Q4","cc",2006,"cc","2007Q1","cc","2007Q2","cc","2007Q3","cc","2007Q4","cc",2007,"cc","2007Q1","cc","2007Q2","cc","2007Q3","cc","2007Q4","cc",2007,"cc","2008Q1","cc","2008Q2","cc","2008Q3","cc","2008Q4","cc",2008,"cc","2008Q1","cc","2008Q2","cc","2008Q3","cc","2008Q4","cc",2008,"cc","2009Q1","cc","2009Q2","cc","2009Q3","cc","2009Q4","cc",2009,"cc","2009Q1","cc","2009Q2","cc","2009Q3","cc","2009Q4","cc",2009,"cc","2010Q1","cc","2010Q2","cc","2010Q3","cc","2010Q4","cc",2010,"cc","2010Q1","cc","2010Q2","cc","2010Q3","cc","2010Q4","cc",2010,"cc","2011Q1","cc","2011Q2","cc","2011Q3","cc","2011Q4","cc",2011,"cc","2011Q1","cc","2011Q2","cc","2011Q3","cc","2011Q4","cc",2011,"cc","2012Q1","cc","2012Q2","cc","2012Q3","cc","2012Q4","cc",2012,"cc","2012Q1","cc","2012Q2","cc","2012Q3","cc","2012Q4","cc",2012,"cc","2013Q1","cc","2013Q2","cc","2013Q3","cc","2013Q4","cc",2013,"cc","2013Q1","cc","2013Q2","cc","2013Q3","cc","2013Q4","cc",2013,"cc","2014Q1","cc","2014Q2","cc","2014Q3","cc","2014Q4","cc",2014,"cc","2014Q1","cc","2014Q2","cc","2014Q3","cc","2014Q4","cc",2014,"cc","2015Q1","cc","2015Q2","cc","2015Q3","cc","2015Q4","cc",2015,"cc","2015Q1","cc","2015Q2","cc","2015Q3","cc","2015Q4","cc",2015,"cc","2016Q1","cc","2016Q2","cc","2016Q3","cc","2016Q4","cc",2016,"cc","2016Q1","cc","2016Q2","cc","2016Q3","cc","2016Q4","cc",2016,"cc","2017Q1","cc","2017Q2","cc","2017Q3","cc","2017Q4","cc",2017,"cc","2017Q1","cc","2017Q2","cc","2017Q3","cc","2017Q4","cc",2017,"cc","2018Q1","cc","2018Q2","cc","2018Q3","cc","2018Q4","cc",2018,"cc","2018Q1","cc","2018Q2","cc","2018Q3","cc","2018Q4","cc",2018,"cc","2019Q1","cc","2019Q2","cc","2019Q3","cc","2019Q4","cc",2019,"cc","2019Q1","cc","2019Q2","cc","2019Q3","cc","2019Q4","cc",2019,"cc","2020Q1","cc","2020Q2","cc","2020Q3","cc","2020Q4","cc",2020,"cc","2020Q1","cc","2020Q2","cc","2020Q3","cc","2020Q4","cc",2020,"cc","2021Q1","cc","2021Q2","cc","2021Q3","cc","2021Q4","cc",2021,"cc","2021Q1","cc","2021Q2","cc","2021Q3","cc","2021Q4","cc",2021,"cc"]
["2.3","All entities (ALL)"]
["2.3.1","Equity  (excluding Reinvestment of earnings) (F5A)","D"]
["2.3.2.","Reinvestment of earnings (F5B)","D"]
["2.3.3.","Debt instruments (FL)","D"]
["2.3.4.","Total (F)","D"]
["2.4","Of which: Resident SPEs (RSP)"]
["2.4.1","Equity  (excluding Reinvestment of earnings) (F5A)","D"]
["2.4.2.","Reinvestment of earnings (F5B)","D"]
["2.4.3.","Debt instruments (FL)","D"]
["2.4.4.","Total (F)","D"]

{"sheet":"1-INC-AGR","index":5,"n_rows":60,"n_cols":343,"rows_kept":60,"cut":false,"hidden":false,"merged":[[48,223,48,242],[54,223,54,242],[9,223,9,232],[9,233,9,242],[11,223,11,242],[27,223,27,242],[46,223,46,232],[46,233,46,242],[9,283,9,292],[48,243,48,262],[54,243,54,262],[9,263,9,272],[9,273,9,282],[11,263,11,282],[27,263,27,282],[46,263,46,272],[46,273,46,282],[48,263,48,282],[54,263,54,282],[9,243,9,252],[9,253,9,262],[11,243,11,262],[27,243,27,262],[46,243,46,252],[48,183,48,202],[54,183,54,202],[9,183,9,192],[9,193,9,202],[11,183,11,202],[27,183,27,202],[46,183,46,192],[46,193,46,202],[48,143,48,162],[54,143,54,162],[9,163,9,172],[9,173,9,182],[11,163,11,182],[27,163,27,182],[46,163,46,172],[46,173,46,182],[48,163,48,182],[54,163,54,182],[9,143,9,152],[9,153,9,162],[11,143,11,162],[27,143,27,162],[46,143,46,152],[46,153,46,162],[48,103,48,122],[54,103,54,122],[9,123,9,132],[9,133,9,142],[11,123,11,142],[27,123,27,142],[46,123,46,132],[46,133,46,142],[48,123,48,142],[54,123,54,142],[9,103,9,112],[9,113,9,122],[11,103,11,122],[27,103,27,122],[46,103,46,112],[46,113,46,122],[9,83,9,92],[9,93,9,102],[11,83,11,102],[27,83,27,102],[46,83,46,92],[46,93,46,102],[48,83,48,102],[54,83,54,102],[9,63,9,72],[9,73,9,82],[11,63,11,82],[27,63,27,82],[46,63,46,72],[46,73,46,82],[48,43,48,62],[54,43,54,62],[9,23,9,32],[9,33,9,42],[11,23,11,42],[27,23,27,42],[46,23,46,32],[46,33,46,42],[48,63,48,82],[54,63,54,82],[48,3,48,22],[54,3,54,22],[27,3,27,22],[9,3,9,12],[9,13,9,22],[11,3,11,22],[46,3,46,12],[46,13,46,22],[48,203,48,222],[54,203,54,222],[9,203,9,212],[9,213,9,222],[11,203,11,222],[27,203,27,222],[46,203,46,212],[46,213,46,222],[48,23,48,42],[54,23,54,42],[9,43,9,52],[9,53,9,62],[11,43,11,62],[27,43,27,62],[46,43,46,52],[46,53,46,62],[9,323,9,332],[9,333,9,342],[11,323,11,342],[27,323,27,342],[46,323,46,332],[46,333,46,342],[48,323,48,342],[54,323,54,342],[46,253,46,262],[9,293,9,302],[11,283,11,302],[27,283,27,302],[46,283,46,292],[46,293,46,302],[48,283,48,302],[54,283,54,302],[9,303,9,312],[9,313,9,322],[11,303,11,322],[27,303,27,322],[46,303,46,312],[46,313,46,322],[48,303,48,322],[54,303,54,322]]}
[null,"QUESTIONNAIRE 1-INC-AGR  FDI INCOME-MACRO ECONOMIC AGGREGATES [ASSET/LIABILITY PRINCIPLE]: "]
["COUNTRY:",{"$f":"Country","v":""}]
["YEAR:  ",{"$f":"Year","v":"2005 -  2021"}]
["CURRENCY:  ",{"$f":"Currency","v":0}]
["UNITS:           ","MILLIONS"]
["STATISTICAL UNIT:",{"$f":"StatUnit","v":""}]
["VALUATION:",{"$f":"ValuationFlows","v":""}]
[]
["3     FOREIGN DIRECT INVESTMENT INCOME [A/L]: MACRO ECONOMIC AGGREGATES "]
[null,null,null,"Credit ( C )",null,null,null,null,null,null,null,null,null,"Debit ( D )",null,null,null,null,null,null,null,null,null,"Credit ( C )",null,null,null,null,null,null,null,null,null,"Debit ( D )",null,null,null,null,null,null,null,null,null,"Credit ( C )",null,null,null,null,null,null,null,null,null,"Debit ( D )",null,null,null,null,null,null,null,null,null,"Credit ( C )",null,null,null,null,null,null,null,null,null,"Debit ( D )",null,null,null,null,null,null,null,null,null,"Credit ( C )",null,null,null,null,null,null,null,null,null,"Debit ( D )",null,null,null,null,null,null,null,null,null,"Credit ( C )",null,null,null,null,null,null,null,null,null,"Debit ( D )",null,null,null,null,null,null,null,null,null,"Credit ( C )",null,null,null,null,null,null,null,null,null,"Debit ( D )",null,null,null,null,null,null,null,null,null,"Credit ( C )",null,null,null,null,null,null,null,null,null,"Debit ( D )",null,null,null,null,null,null,null,null,null,"Credit ( C )",null,null,null,null,null,null,null,null,null,"Debit ( D )",null,null,null,null,null,null,null,null,null,"Credit ( C )",null,null,null,null,null,null,null,null,null,"Debit ( D )",null,null,null,null,null,null,null,null,null,"Credit ( C )",null,null,null,null,null,null,null,null,null,"Debit ( D )",null,null,null,null,null,null,null,null,null,"Credit ( C )",null,null,null,null,null,null,null,null,null,"Debit ( D )",null,null,null,null,null,null,null,null,null,"Credit ( C )",null,null,null,null,null,null,null,null,null,"Debit ( D )",null,null,null,null,null,null,null,null,null,"Credit ( C )",null,null,null,null,null,null,null,null,null,"Debit ( D )",null,null,null,null,null,null,null,null,null,"Credit ( C )",null,null,null,null,null,null,null,null,null,"Debit ( D )",null,null,null,null,null,null,null,null,null,"Credit ( C )",null,null,null,null,null,null,null,null,null,"Debit ( D )",null,null,null,null,null,null,null,null,null,"Credit ( C )",null,null,null,null,null,null,null,null,null,"Debit ( D )"]
[null,null,null,"2005Q1","cc","2005Q2","cc","2005Q3","cc","2005Q4","cc",2005,"cc","2005Q1","cc","2005Q2","cc","2005Q3","cc","2005Q4","cc",2005,"cc","2006Q1","cc","2006Q2","cc","2006Q3","cc","2006Q4","cc",2006,"cc","2006Q1","cc","2006Q2","cc","2006Q3","cc","2006Q4","cc",2006,"cc","2007Q1","cc","2007Q2","cc","2007Q3","cc","2007Q4","cc",2007,"cc","2007Q1","cc","2007Q2","cc","2007Q3","cc","2007Q4","cc",2007,"cc","2008Q1","cc","2008Q2","cc","2008Q3","cc","2008Q4","cc",2008,"cc","2008Q1","cc","2008Q2","cc","2008Q3","cc","2008Q4","cc",2008,"cc","2009Q1","cc","2009Q2","cc","2009Q3","cc","2009Q4","cc",2009,"cc","2009Q1","cc","2009Q2","cc","2009Q3","cc","2009Q4","cc",2009,"cc","2010Q1","cc","2010Q2","cc","2010Q3","cc","2010Q4","cc",2010,"cc","2010Q1","cc","2010Q2","cc","2010Q3","cc","2010Q4","cc",2010,"cc","2011Q1","cc","2011Q2","cc","2011Q3","cc","2011Q4","cc",2011,"cc","2011Q1","cc","2011Q2","cc","2011Q3","cc","2011Q4","cc",2011,"cc","2012Q1","cc","2012Q2","cc","2012Q3","cc","2012Q4","cc",2012,"cc","2012Q1","cc","2012Q2","cc","2012Q3","cc","2012Q4","cc",2012,"cc","2013Q1","cc","2013Q2","cc","2013Q3","cc","2013Q4","cc",2013,"cc","2013Q1","cc","2013Q2","cc","2013Q3","cc","2013Q4","cc",2013,"cc","2014Q1","cc","2014Q2","cc","2014Q3","cc","2014Q4","cc",2014,"cc","2014Q1","cc","2014Q2","cc","2014Q3","cc","2014Q4","cc",2014,"cc","2015Q1","cc","2015Q2","cc","2015Q3","cc","2015Q4","cc",2015,"cc","2015Q1","cc","2015Q2","cc","2015Q3","cc","2015Q4","cc",2015,"cc","2016Q1","cc","2016Q2","cc","2016Q3","cc","2016Q4","cc",2016,"cc","2016Q1","cc","2016Q2","cc","2016Q3","cc","2016Q4","cc",2016,"cc","2017Q1","cc","2017Q2","cc","2017Q3","cc","2017Q4","cc",2017,"cc","2017Q1","cc","2017Q2","cc","2017Q3","cc","2017Q4","cc",2017,"cc","2018Q1","cc","2018Q2","cc","2018Q3","cc","2018Q4","cc",2018,"cc","2018Q1","cc","2018Q2","cc","2018Q3","cc","2018Q4","cc",2018,"cc","2019Q1","cc","2019Q2","cc","2019Q3","cc","2019Q4","cc",2019,"cc","2019Q1","cc","2019Q2","cc","2019Q3","cc","2019Q4","cc",2019,"cc","2020Q1","cc","2020Q2","cc","2020Q3","cc","2020Q4","cc",2020,"cc","2020Q1","cc","2020Q2","cc","2020Q3","cc","2020Q4","cc",2020,"cc","2021Q1","cc","2021Q2","cc","2021Q3","cc","2021Q4","cc",2021,"cc","2021Q1","cc","2021Q2","cc","2021Q3","cc","2021Q4","cc",2021,"cc"]
["3.1","All entities (ALL)"]
["3.1.1","Income on Equity  (D4S)","D"]
["3.1.1.1","Distributed profits (D42S)","D"]
["3.1.1.1.1","Direct investor in direct investment enterprises","D1"]
["3.1.1.1.2","Direct investment enterprises in direct investor  ","D2"]
["3.1.1.1.3","Fellow enterprises in other fellow enterprises","D3"]
["3.1.1.1.3.1","Ultimate controlling parent is resident","U1"]
["3.1.1.1.3.2","Ultimate controlling parent is non-resident","U2"]
["3.1.1.2","Reinvested earnings (D43S)","D"]
["3.1.2.","Income on debt (interest) (D4Q)","D"]
["3.1.2.1","Direct investor in direct investment enterprises","D1"]
["3.1.2.2","Direct investment enterprises in direct investor  ","D2"]
["3.1.2.3","Fellow enterprises in other fellow enterprises","D3"]
["3.1.2.3.1","Ultimate controlling parent is resident","U1"]
["3.1.2.3.2","Ultimate controlling parent is non-resident","U2"]
["3.1.3.","Total (D4P)","D"]
["3.2","Of which: Resident SPEs (RSP)"]
["3.2.1","Income on Equity  (D4S)","D"]
["3.2.1.1","Distributed profits (D42S)","D"]
["3.2.1.1.1","Direct investor in direct investment enterprises","D1"]
["3.2.1.1.2","Direct investment enterprises in direct investor  ","D2"]
["3.2.1.1.3","Fellow enterprises in other fellow enterprises","D3"]
["3.2.1.1.3.1","Ultimate controlling parent is resident","U1"]
["3.2.1.1.3.2","Ultimate controlling parent is non-resident","U2"]
["3.2.1.2","Reinvested earnings (D43S)","D"]
["3.2.2.","Income on debt (interest) (D4Q)","D"]
["3.2.2.1","Direct investor in direct investment enterprises","D1"]
["3.2.2.2","Direct investment enterprises in direct investor  ","D2"]
["3.2.2.3","Fellow enterprises in other fellow enterprises","D3"]
["3.2.2.3.1","Ultimate controlling parent is resident","U1"]
["3.2.2.3.2","Ultimate controlling parent is non-resident","U2"]
["3.2.3.","Total (D4P)","D"]
[]
["If you do not report all above listed FDI components according to the asset/liability presentation, which are necessary for the conversion of FDI series into the directional basis, please also report the directional FDI series below:"]
["FOREIGN DIRECT INVESTMENT INCOME:AGGREGATES ON A DIRECTIONAL BASIS (ANNUAL AND QUARTERLY)"]
[null,null,null,"Net income on Outward (IO)",null,null,null,null,null,null,null,null,null,"Net income on Inward (II)",null,null,null,null,null,null,null,null,null,"Net income on Outward (IO)",null,null,null,null,null,null,null,null,null,"Net income on Inward (II)",null,null,null,null,null,null,null,null,null,"Net income on Outward (IO)",null,null,null,null,null,null,null,null,null,"Net income on Inward (II)",null,null,null,null,null,null,null,null,null,"Net income on Outward (IO)",null,null,null,null,null,null,null,null,null,"Net income on Inward (II)",null,null,null,null,null,null,null,null,null,"Net income on Outward (IO)",null,null,null,null,null,null,null,null,null,"Net income on Inward (II)",null,null,null,null,null,null,null,null,null,"Net income on Outward (IO)",null,null,null,null,null,null,null,null,null,"Net income on Inward (II)",null,null,null,null,null,null,null,null,null,"Net income on Outward (IO)",null,null,null,null,null,null,null,null,null,"Net income on Inward (II)",null,null,null,null,null,null,null,null,null,"Net income on Outward (IO)",null,null,null,null,null,null,null,null,null,"Net income on Inward (II)",null,null,null,null,null,null,null,null,null,"Net income on Outward (IO)",null,null,null,null,null,null,null,null,null,"Net income on Inward (II)",null,null,null,null,null,null,null,null,null,"Net income on Outward (IO)",null,null,null,null,null,null,null,null,null,"Net income on Inward (II)",null,null,null,null,null,null,null,null,null,"Net income on Outward (IO)",null,null,null,null,null,null,null,null,null,"Net income on Inward (II)",null,null,null,null,null,null,null,null,null,"Net income on Outward (IO)",null,null,null,null,null,null,null,null,null,"Net income on Inward (II)",null,null,null,null,null,null,null,null,null,"Net income on Outward (IO)",null,null,null,null,null,null,null,null,null,"Net income on Inward (II)",null,null,null,null,null,null,null,null,null,"Net income on Outward (IO)",null,null,null,null,null,null,null,null,null,"Net income on Inward (II)",null,null,null,null,null,null,null,null,null,"Net income on Outward (IO)",null,null,null,null,null,null,null,null,null,"Net income on Inward (II)",null,null,null,null,null,null,null,null,null,"Net income on Outward (IO)",null,null,null,null,null,null,null,null,null,"Net income on Inward (II)",null,null,null,null,null,null,null,null,null,"Net income on Outward (IO)",null,null,null,null,null,null,null,null,null,"Net income on Inward (II)"]
[null,null,null,"2005Q1","cc","2005Q2","cc","2005Q3","cc","2005Q4","cc",2005,"cc","2005Q1","cc","2005Q2","cc","2005Q3","cc","2005Q4","cc",2005,"cc","2006Q1","cc","2006Q2","cc","2006Q3","cc","2006Q4","cc",2006,"cc","2006Q1","cc","2006Q2","cc","2006Q3","cc","2006Q4","cc",2006,"cc","2007Q1","cc","2007Q2","cc","2007Q3","cc","2007Q4","cc",2007,"cc","2007Q1","cc","2007Q2","cc","2007Q3","cc","2007Q4","cc",2007,"cc","2008Q1","cc","2008Q2","cc","2008Q3","cc","2008Q4","cc",2008,"cc","2008Q1","cc","2008Q2","cc","2008Q3","cc","2008Q4","cc",2008,"cc","2009Q1","cc","2009Q2","cc","2009Q3","cc","2009Q4","cc",2009,"cc","2009Q1","cc","2009Q2","cc","2009Q3","cc","2009Q4","cc",2009,"cc","2010Q1","cc","2010Q2","cc","2010Q3","cc","2010Q4","cc",2010,"cc","2010Q1","cc","2010Q2","cc","2010Q3","cc","2010Q4","cc",2010,"cc","2011Q1","cc","2011Q2","cc","2011Q3","cc","2011Q4","cc",2011,"cc","2011Q1","cc","2011Q2","cc","2011Q3","cc","2011Q4","cc",2011,"cc","2012Q1","cc","2012Q2","cc","2012Q3","cc","2012Q4","cc",2012,"cc","2012Q1","cc","2012Q2","cc","2012Q3","cc","2012Q4","cc",2012,"cc","2013Q1","cc","2013Q2","cc","2013Q3","cc","2013Q4","cc",2013,"cc","2013Q1","cc","2013Q2","cc","2013Q3","cc","2013Q4","cc",2013,"cc","2014Q1","cc","2014Q2","cc","2014Q3","cc","2014Q4","cc",2014,"cc","2014Q1","cc","2014Q2","cc","2014Q3","cc","2014Q4","cc",2014,"cc","2015Q1","cc","2015Q2","cc","2015Q3","cc","2015Q4","cc",2015,"cc","2015Q1","cc","2015Q2","cc","2015Q3","cc","2015Q4","cc",2015,"cc","2016Q1","cc","2016Q2","cc","2016Q3","cc","2016Q4","cc",2016,"cc","2016Q1","cc","2016Q2","cc","2016Q3","cc","2016Q4","cc",2016,"cc","2017Q1","cc","2017Q2","cc","2017Q3","cc","2017Q4","cc",2017,"cc","2017Q1","cc","2017Q2","cc","2017Q3","cc","2017Q4","cc",2017,"cc","2018Q1","cc","2018Q2","cc","2018Q3","cc","2018Q4","cc",2018,"cc","2018Q1","cc","2018Q2","cc","2018Q3","cc","2018Q4","cc",2018,"cc","2019Q1","cc","2019Q2","cc","2019Q3","cc","2019Q4","cc",2019,"cc","2019Q1","cc","2019Q2","cc","2019Q3","cc","2019Q4","cc",2019,"cc","2020Q1","cc","2020Q2","cc","2020Q3","cc","2020Q4","cc",2020,"cc","2020Q1","cc","2020Q2","cc","2020Q3","cc","2020Q4","cc",2020,"cc","2021Q1","cc","2021Q2","cc","2021Q3","cc","2021Q4","cc",2021,"cc","2021Q1","cc","2021Q2","cc","2021Q3","cc","2021Q4","cc",2021,"cc"]
["3.3","All entities (ALL)"]
["3.3.1","Income on Equity  (D4S)","D"]
["3.3.1.1","Distributed profits (D42S)","D"]
["3.3.1.2","Reinvested earnings (D43S)","D"]
["3.3.2.","Income on debt (interest) (D4Q)","D"]
["3.3.3.","Total (D4P)","D"]
["3.4","Of which: Resident SPEs (RSP)"]
["3.4.1","Income on Equity  (D4S)","D"]
["3.4.1.1","Distributed profits (D42S)","D"]
["3.4.1.2","Reinvested earnings (D43S)","D"]
["3.4.2.","Income on debt (interest) (D4Q)","D"]
["3.4.3.","Total (D4P)","D"]